bitfinex-derivatives/quotes_BTCF0:USTF0_20250309
["timestamp","ask_amount","ask_price","bid_price","bid_amount"]
[1741540394085,0.120614,82924.0,82906.0,0.00018098]
[1741540394086,0.1206387,82907.0,82906.0,0.00018098]
[1741540394270,0.6081587,82907.0,82906.0,0.00018098]
[1741540394675,0.83831064,82907.0,82906.0,8e-08]
[1741540394982,1.51939064,82907.0,82906.0,8e-08]
[1741540395185,0.1206547,82896.0,82895.0,0.00180935]
[1741540395379,0.181004,82886.0,82885.0,0.0089558]
[1741540395681,0.181004,82886.0,82885.0,0.1206708]
[1741540395682,0.6081893,82886.0,82885.0,0.1206708]
[1741540396383,0.12672,82886.0,82885.0,0.1206708]
[1741540396676,0.12472,82886.0,82885.0,0.1206708]
[1741540396881,0.0603319,82890.0,82889.0,0.1206649]
[1741540397083,0.2088,82891.0,82890.0,0.1206635]
[1741540397292,0.329462,82891.0,82890.0,0.3279635]
[1741540397578,0.329462,82891.0,82885.0,0.1256664]
[1741540397579,0.0603322,82890.0,82885.0,0.1256664]
[1741540397785,0.4814675,82888.0,82887.0,0.1810012]
[1741540398183,0.1206678,82887.0,82886.0,0.2073]
[1741540398381,0.5692678,82887.0,82886.0,0.1206693]
[1741540398678,0.5692678,82887.0,82885.0,1e-07]
[1741540398679,0.1206693,82886.0,82885.0,1e-07]
[1741540398880,0.1206693,82886.0,82877.0,8e-08]
[1741540398881,0.120681,82878.0,82877.0,8e-08]
[1741540399084,1.038541,82878.0,82877.0,8e-08]
[1741540399280,1.188541,82878.0,82877.0,8e-08]
[1741540399488,1.188541,82878.0,82854.0,0.2073]
[1741540399489,0.6034492,82872.0,82853.0,0.21509555]
[1741540399679,0.1207159,82854.0,82853.0,0.21509555]
[1741540400084,0.1207159,82854.0,82853.0,0.22419427]
[1741540400288,0.3471159,82855.0,82854.0,0.1207159]
[1741540400587,0.3471159,82855.0,82854.0,0.3324159]
[1741540400884,0.3471159,82855.0,82854.0,0.2117]
[1741540401277,0.0603579,82854.0,82850.0,0.35849259]
[1741540401478,0.1207203,82851.0,82850.0,0.47921429]
[1741540401778,0.1207203,82851.0,82850.0,0.35849259]
[1741540401981,0.4815203,82851.0,82850.0,0.35849259]
[1741540402184,0.6315203,82851.0,82850.0,0.31088589]
[1741540402383,0.6315203,82851.0,82850.0,0.30088589]
[1741540402686,0.4815203,82851.0,82850.0,0.30088589]
[1741540402981,0.4755203,82851.0,82850.0,0.42160759]
[1741540403181,0.3608,82851.0,82850.0,0.42160759]
[1741540403385,0.3608,82851.0,82839.0,0.0603686]
[1741540403578,0.1207261,82847.0,82843.0,0.00902716]
[1741540404081,0.330623,82850.0,82843.0,0.00902716]
[1741540404287,0.120723,82850.0,82849.0,0.1207232]
[1741540404479,0.1207247,82848.0,82847.0,0.1810877]
[1741540404683,0.1207247,82848.0,82847.0,0.0603625]
[1741540405794,0.1448509,82850.0,82845.0,0.0603644]
[1741540405985,0.1207261,82847.0,82845.0,0.1207286]
[1741540406183,0.1207261,82847.0,82844.0,0.0603647]
[1741540406386,0.1207261,82847.0,82843.0,0.12975846]
[1741540406596,0.1207261,82847.0,82843.0,0.00902716]
[1741540407088,0.4815261,82847.0,82846.0,8e-08]
[1741540407299,0.6315261,82847.0,82846.0,8e-08]
[1741540407490,1.0551261,82847.0,82846.0,8e-08]
[1741540407791,0.91735258,82847.0,82846.0,8e-08]
[1741540408185,1.06735258,82847.0,82846.0,8e-08]
[1741540408385,0.1207392,82838.0,82837.0,0.02240105]
[1741540408698,0.6082192,82838.0,82837.0,5e-08]
[1741540408998,0.85538,82838.0,82826.0,0.00883969]
[1741540409192,0.4815553,82827.0,82826.0,0.00883969]
[1741540409392,1.0386953,82827.0,82826.0,0.00883969]
[1741540409594,0.120764,82821.0,82820.0,0.43019111]
[1741540410285,0.3219567,82826.0,82825.0,0.1207582]
[1741540410691,0.2012,82826.0,82825.0,0.1207582]
[1741540410900,0.9126567,82827.0,82826.0,0.1207567]
[1741540411197,0.9120167,82827.0,82826.0,0.218]
[1741540411699,1.3338167,82827.0,82826.0,0.218]
[1741540411995,1.1132167,82827.0,82826.0,0.218]
[1741540412593,1.1142167,82827.0,82826.0,0.218]
[1741540412792,1.1142167,82827.0,82826.0,0.3387567]
[1741540413001,1.1142167,82827.0,82826.0,0.218]
[1741540413897,0.8963167,82827.0,82826.0,0.218]
[1741540414096,0.57436,82827.0,82826.0,0.218]
[1741540414300,0.6951153,82827.0,82826.0,0.3387567]
[1741540414602,0.6951153,82827.0,82826.0,0.218]
[1741540414996,0.57436,82827.0,82818.0,0.0001811]
[1741540415187,0.1207669,82819.0,82818.0,0.0001811]
[1741540415392,0.1207669,82819.0,82818.0,0.1209495]
[1741540415698,0.1207669,82819.0,82818.0,0.0001811]
[1741540416601,0.1207669,82819.0,82818.0,0.00928359]
[1741540416602,0.4815669,82819.0,82818.0,0.00928359]
[1741540416798,0.4815669,82819.0,82805.0,0.2026]
[1741540416799,0.3608,82819.0,82805.0,0.2026]
[1741540416996,0.48158,82810.0,82806.0,0.2042]
[1741540417191,0.1207844,82807.0,82806.0,0.2042]
[1741540417896,0.1207844,82807.0,82798.0,0.0001811]
[1741540417897,0.1207961,82799.0,82798.0,0.0001811]
[1741540418097,0.1208165,82785.0,82784.0,0.21342669]
[1741540418291,0.1208311,82775.0,82773.0,0.120834]
[1741540418496,0.1208311,82775.0,82770.0,0.33258]
[1741540418693,0.1208311,82775.0,82774.0,0.50714395]
[1741540418887,0.13280258,82775.0,82774.0,0.50714395]
[1741540419110,0.1208311,82775.0,82774.0,0.50714395]
[1741540419296,0.1208311,82775.0,82774.0,0.4980886]
[1741540419806,0.1208311,82775.0,82774.0,0.6189212]
[1741540420096,0.1208311,82775.0,82774.0,0.4980886]
[1741540420304,0.3339311,82775.0,82774.0,0.6189212]
[1741540420603,0.1208311,82775.0,82774.0,0.8393212]
[1741540420793,0.1208311,82775.0,82774.0,0.7184886]
[1741540421200,0.1208311,82775.0,82774.0,0.2204]
[1741540421403,0.1208326,82774.0,82773.0,0.00885398]
[1741540421702,0.1208384,82770.0,82769.0,0.2089]
[1741540421909,0.1208384,82770.0,82769.0,0.4287]
[1741540422095,0.4816384,82770.0,82769.0,0.4287]
[1741540423494,0.4816384,82770.0,82769.0,0.4377861]
[1741540424400,0.3608,82770.0,82769.0,0.558626]
[1741540424993,0.0604171,82773.0,82772.0,0.1208355]
[1741540425309,0.12668,82795.0,82782.0,0.1208209]
[1741540425495,0.5420094,82794.0,82793.0,0.1208048]
[1741540425699,0.120818,82785.0,82784.0,0.1208115]
[1741540425896,0.120818,82785.0,82784.0,0.5457115]
[1741540426202,0.0604073,82787.0,82786.0,0.1208151]
[1741540426503,0.0604073,82787.0,82786.0,0.13276908]
[1741540426704,0.00018122,82795.0,82786.0,0.13276908]
[1741540426705,0.00018122,82795.0,82793.0,0.1208048]
[1741540427000,0.1208019,82795.0,82794.0,0.2044]
[1741540427303,0.1208019,82795.0,82794.0,0.4249]
[1741540427499,0.12668,82796.0,82764.0,0.3608]
[1741540427707,0.1208253,82779.0,82778.0,0.01231853]
[1741540428207,0.1208253,82779.0,82778.0,0.13314523]
[1741540428401,0.0604118,82781.0,82778.0,0.13314523]
[1741540428402,0.0604112,82781.0,82778.0,0.13314523]
[1741540428600,0.1208238,82780.0,82779.0,0.3228248]
[1741540429003,0.1208238,82780.0,82779.0,0.202]
[1741540429312,0.4816238,82780.0,82779.0,0.202]
[1741540429606,0.9055238,82780.0,82779.0,0.202]
[1741540430103,0.4816238,82780.0,82779.0,0.202]
[1741540430310,0.1208238,82780.0,82779.0,0.3228253]
[1741540430805,0.1208238,82780.0,82779.0,0.5307253]
[1741540431004,0.1208238,82780.0,82779.0,0.4099]
[1741540431204,0.00018122,82787.0,82786.0,0.1208151]
[1741540431499,0.1207808,82810.0,82791.0,0.0604033]
[1741540431703,0.0603875,82814.0,82809.0,0.1207762]
[1741540432002,0.0603856,82816.0,82810.0,0.4179]
[1741540432305,0.1811665,82813.0,82812.0,0.1207767]
[1741540432491,0.0603879,82813.0,82812.0,0.1207767]
[1741540432691,0.1207669,82820.0,82819.0,0.1207655]
[1741540432892,0.1207698,82817.0,82816.0,0.3608]
[1741540433502,0.1207698,82817.0,82816.0,0.4815713]
[1741540433700,0.1207698,82817.0,82816.0,0.6909713]
[1741540433896,0.1207698,82817.0,82816.0,0.5702]
[1741540434104,0.1207698,82817.0,82816.0,0.58263656]
[1741540434293,0.1207698,82817.0,82816.0,0.22183656]
[1741540435110,0.1277698,82817.0,82816.0,0.22183656]
[1741540435505,0.6939698,82817.0,82816.0,0.01243656]
[1741540435703,0.6939698,82817.0,82808.0,0.2094]
[1741540436011,0.1207815,82809.0,82808.0,0.2094]
[1741540437007,0.1207815,82809.0,82808.0,0.34253341]
[1741540437703,0.36844,82817.0,82815.0,0.1207728]
[1741540437899,0.48157,82817.0,82816.0,0.1207713]
[1741540438099,0.12656,82824.0,82816.0,0.4815713]
[1741540438304,0.3608,82838.0,82816.0,0.5783]
[1741540438508,0.4815406,82838.0,82837.0,0.1207407]
[1741540438706,0.3608,82838.0,82835.0,0.0603711]
[1741540438908,0.1207407,82837.0,82836.0,0.2175]
[1741540439108,0.2092,82843.0,82836.0,0.2175]
[1741540439109,0.3608,82845.0,82844.0,0.1207305]
[1741540439306,0.120729,82845.0,82844.0,0.2414582]
[1741540439706,0.120729,82845.0,82844.0,0.1207277]
[1741540440711,0.1207319,82843.0,82842.0,0.2175]
[1741540441413,0.3385319,82843.0,82842.0,0.2175]
[1741540441614,0.04828,82846.0,82845.0,0.120729]
[1741540442112,0.1207407,82837.0,82836.0,0.0001811]
[1741540442411,0.4815407,82837.0,82836.0,5.122e-05]
[1741540442611,0.4815407,82837.0,82823.0,0.2122]
[1741540442612,0.1207596,82824.0,82823.0,0.2122]
[1741540443205,0.1207655,82820.0,82819.0,0.0120088]
[1741540443407,0.1207655,82820.0,82819.0,0.1327757]
[1741540443408,0.4815655,82820.0,82819.0,0.1327757]
[1741540443603,0.4815655,82820.0,82819.0,0.1207669]
[1741540443807,0.2167,82821.0,82819.0,0.1207669]
[1741540444015,0.4199,82821.0,82820.0,0.3352655]
[1741540444411,0.1267011,82828.0,82827.0,0.1207553]
[1741540444613,0.0001811,82828.0,82827.0,0.1207553]
[1741540445215,0.0001811,82828.0,82827.0,0.13294609]
[1741540445915,0.0001811,82828.0,82822.0,0.12648]
[1741540445916,0.1207771,82812.0,82807.0,0.12648]
[1741540446116,0.060384,82819.0,82811.0,0.01207707]
[1741540446416,0.3309717,82818.0,82817.0,0.1207684]
[1741540447118,0.2102,82818.0,82817.0,0.1207684]
[1741540447317,0.208,82827.0,82812.0,0.2184]
[1741540447517,0.3608,82825.0,82816.0,0.2184]
[1741540447717,0.1207698,82818.0,82817.0,0.3397665]
[1741540447912,0.0603805,82823.0,82817.0,0.219]
[1741540448109,0.3309634,82822.0,82821.0,0.120764]
[1741540448514,0.12648,82829.0,82827.0,0.1207553]
[1741540448725,0.13148,82837.0,82827.0,0.1207553]
[1741540449018,0.1209349,82828.0,82827.0,0.1207553]
[1741540449423,0.0001811,82828.0,82827.0,0.1207553]
[1741540449918,0.0001811,82828.0,82824.0,0.4093]
[1741540449919,0.0603776,82827.0,82824.0,0.4093]
[1741540450115,0.0001811,82828.0,82824.0,0.3283567]
[1741540450318,0.0001811,82828.0,82827.0,0.1207553]
[1741540450618,0.0001811,82828.0,82824.0,0.2076]
[1741540450619,0.1207582,82825.0,82824.0,0.2076]
[1741540450920,0.0001811,82828.0,82826.0,0.1207567]
[1741540451221,0.04828,82846.0,82845.0,0.120729]
[1741540451416,0.1207349,82841.0,82840.0,0.12644]
[1741540451616,0.1207349,82841.0,82840.0,0.3283363]
[1741540451818,0.3346334,82842.0,82841.0,0.1207349]
[1741540452025,0.1207334,82842.0,82841.0,0.2193]
[1741540452824,0.2742656,82844.0,82834.0,0.12644]
[1741540452825,0.1207436,82835.0,82834.0,0.12644]
[1741540453122,0.1207436,82835.0,82834.0,0.2471851]
[1741540453324,0.1207436,82835.0,82834.0,0.4664851]
[1741540453919,0.1207436,82835.0,82834.0,0.4786206]
[1741540454120,0.274271,82837.0,82833.0,0.0001811]
[1741540454315,0.274271,82837.0,82833.0,0.1209276]
[1741540454316,0.3236451,82834.0,82833.0,0.1209276]
[1741540454523,0.1207451,82834.0,82833.0,0.13325362]
[1741540454723,0.004,82835.0,82834.0,0.1207451]
[1741540454910,0.004,82835.0,82834.0,0.3318451]
[1741540455109,0.00781735,82835.0,82834.0,0.6926451]
[1741540455314,0.00781735,82835.0,82834.0,0.3318451]
[1741540456018,0.04828,82846.0,82834.0,0.2111]
[1741540456211,0.04828,82846.0,82845.0,0.481529]
[1741540456212,1e-07,82846.0,82845.0,0.481529]
[1741540456417,1e-07,82846.0,82845.0,0.607889]
[1741540457223,0.21337348,82846.0,82845.0,0.607889]
[1741540458819,0.17107913,82846.0,82845.0,0.607889]
[1741540459016,0.12878478,82846.0,82845.0,0.607889]
[1741540459414,0.08649043,82846.0,82845.0,0.607889]
[1741540459722,0.2793534,82861.0,82845.0,0.48716]
[1741540459922,0.1810781,82855.0,82854.0,0.1207104]
[1741540460122,0.1810781,82855.0,82854.0,0.2470304]
[1741540460327,0.060355,82859.0,82858.0,0.1810616]
[1741540460727,0.060355,82859.0,82858.0,0.0603544]
[1741540460929,0.1207203,82851.0,82850.0,0.0001811]
[1741540461231,0.4815203,82851.0,82850.0,0.0001811]
[1741540461427,0.4785203,82851.0,82850.0,0.0001811]
[1741540461619,0.3608,82851.0,82829.0,0.1207513]
[1741540461816,0.3608,82851.0,82805.0,0.2126]
[1741540461817,0.3608,82831.0,82805.0,0.2126]
[1741540462023,0.1207713,82816.0,82815.0,0.2203]
[1741540462321,0.0603828,82820.0,82815.0,0.44682375]
[1741540462620,0.3215684,82819.0,82818.0,0.1207684]
[1741540462823,0.3215684,82819.0,82818.0,0.5556684]
[1741540463032,0.2008,82819.0,82818.0,0.5556684]
[1741540463224,0.3215669,82819.0,82818.0,0.5556684]
[1741540463418,0.2008,82819.0,82818.0,0.5556684]
[1741540464118,0.3215669,82819.0,82815.0,0.01192375]
[1741540464318,0.2601848,82818.0,82814.0,0.01068749]
[1741540464523,0.1207728,82815.0,82814.0,0.01068749]
[1741540464728,0.1207728,82815.0,82814.0,0.13146169]
[1741540465028,0.0002732,82820.0,82819.0,0.1207669]
[1741540465327,0.0001811,82826.0,82825.0,0.1207582]
[1741540465518,0.0001811,82826.0,82825.0,0.2470382]
[1741540465724,0.00657635,82826.0,82825.0,0.2470382]
[1741540465923,0.00657635,82826.0,82825.0,0.6689382]
[1741540466425,0.0001811,82826.0,82825.0,0.6689382]
[1741540467432,0.1209378,82826.0,82825.0,0.6689382]
[1741540467924,0.0001811,82826.0,82817.0,0.48704]
[1741540468130,0.1207684,82818.0,82817.0,0.2470098]
[1741540468521,0.2796291,82825.0,82817.0,0.12624]
[1741540468522,0.21925,82825.0,82817.0,0.12624]
[1741540468835,0.01825,82825.0,82824.0,0.1207596]
[1741540469428,0.01825,82825.0,82824.0,0.5580596]
[1741540469727,0.01825,82825.0,82824.0,0.9188596]
[1741540470925,0.3608,82859.0,82824.0,0.9481]
[1741540471127,0.2197,82858.0,82857.0,0.1207115]
[1741540471432,0.2197,82858.0,82855.0,0.0603566]
[1741540471433,0.34432357,82868.0,82865.0,0.1206987]
[1741540471736,0.34432357,82868.0,82866.0,0.1206984]
[1741540471737,0.2197,82867.0,82866.0,0.1206984]
[1741540471935,0.2197,82867.0,82866.0,0.5471984]
[1741540472232,0.22349662,82867.0,82866.0,0.5471984]
[1741540472427,0.34419362,82867.0,82866.0,0.5471984]
[1741540472824,0.1207086,82859.0,82858.0,0.0001811]
[1741540473035,0.1207086,82859.0,82858.0,0.13296682]
[1741540473328,0.3367078,82860.0,82859.0,0.1207086]
[1741540473534,0.3367078,82860.0,82859.0,0.4204]
[1741540473726,0.1207086,82859.0,82858.0,0.13296682]
[1741540474032,0.2182,82859.0,82858.0,0.13296682]
[1741540474929,0.2219846,82859.0,82858.0,0.13296682]
[1741540475130,0.4379846,82859.0,82858.0,0.13296682]
[1741540475428,0.2219846,82859.0,82858.0,0.13296682]
[1741540475631,0.3608,82890.0,82858.0,0.01225672]
[1741540475824,0.2182,82876.0,82866.0,0.0603491]
[1741540476030,0.2182,82876.0,82875.0,0.1206853]
[1741540476227,0.3388839,82876.0,82875.0,0.1206853]
[1741540476834,0.3388839,82876.0,82875.0,0.5514853]
[1741540477733,0.1226839,82876.0,82875.0,0.5514853]
[1741540477935,0.1226839,82876.0,82875.0,0.56344929]
[1741540477936,0.002,82876.0,82875.0,0.56344929]
[1741540478134,0.002,82876.0,82875.0,0.6776053]
[1741540479638,0.002,82876.0,82875.0,0.68949128]
[1741540482538,0.002,82876.0,82875.0,0.22728598]
[1741540482743,0.1206926,82870.0,82869.0,0.4164]
[1741540483037,0.4066,82875.0,82855.0,0.2077]
[1741540483238,0.5661,82869.0,82862.0,0.12604]
[1741540483442,0.1207013,82865.0,82864.0,0.1207004]
[1741540483635,0.1207013,82865.0,82864.0,0.54912084]
[1741540483834,0.1207013,82865.0,82864.0,0.42842044]
[1741540484028,0.1207013,82865.0,82864.0,0.54912174]
[1741540484433,0.1207013,82865.0,82864.0,0.42842044]
[1741540485035,0.1207013,82865.0,82864.0,0.54912174]
[1741540485235,0.0603491,82867.0,82866.0,0.1206984]
[1741540485440,0.2013,82868.0,82866.0,0.1206984]
[1741540485640,0.3219955,82868.0,82867.0,0.120697]
[1741540486039,0.2013,82868.0,82866.0,0.2133]
[1741540486247,0.3219955,82868.0,82867.0,0.2131]
[1741540486947,0.3219955,82868.0,82867.0,0.333797]
[1741540487133,0.3219955,82868.0,82867.0,0.2131]
[1741540487335,0.17822207,82873.0,82872.0,0.1206897]
[1741540487539,0.17822207,82873.0,82872.0,0.56970347]
[1741540487739,0.30274225,82873.0,82872.0,0.48676]
[1741540487940,0.30274225,82873.0,82872.0,0.12596]
[1741540488543,0.33092018,82873.0,82872.0,0.12596]
[1741540489543,0.00383198,82873.0,82872.0,0.2466497]
[1741540490149,0.12452018,82873.0,82872.0,0.2466497]
[1741540490347,0.12552018,82873.0,82872.0,0.2466497]
[1741540491047,0.12552018,82873.0,82872.0,0.12596]
[1741540491247,0.12552018,82873.0,82872.0,0.2466497]
[1741540492648,0.1206911,82871.0,82870.0,0.3608]
[1741540492849,0.1206911,82871.0,82870.0,0.12592]
[1741540493147,0.12452308,82871.0,82870.0,0.12592]
[1741540493445,0.33772308,82871.0,82870.0,0.12592]
[1741540494849,0.33772308,82871.0,82854.0,0.3333149]
[1741540494850,0.1207028,82863.0,82854.0,0.3333149]
[1741540495049,0.1207028,82863.0,82841.0,0.0603671]
[1741540495050,0.1207028,82863.0,82855.0,0.12588]
[1741540495246,0.1207086,82859.0,82852.0,0.4054]
[1741540495546,0.1207086,82859.0,82858.0,0.0001811]
[1741540495952,1.0581086,82859.0,82858.0,1e-07]
[1741540496341,0.9374,82859.0,82840.0,0.3608]
[1741540496545,0.1207349,82841.0,82840.0,0.3608]
[1741540496842,0.1207349,82841.0,82840.0,0.4815363]
[1741540497248,0.1207349,82841.0,82840.0,0.9007363]
[1741540497555,0.3266349,82841.0,82840.0,0.9007363]
[1741540497756,0.3266349,82841.0,82840.0,0.6835363]
[1741540497953,0.3266349,82841.0,82840.0,0.57201518]
[1741540498153,0.3266349,82841.0,82840.0,0.37001518]
[1741540498745,0.5401349,82841.0,82840.0,0.37001518]
[1741540499052,0.5401349,82841.0,82840.0,0.49075148]
[1741540499643,0.3266349,82841.0,82840.0,0.71369233]
[1741540500049,0.3266349,82841.0,82840.0,0.70155148]
[1741540500354,0.3266349,82841.0,82840.0,0.00921518]
[1741540500552,0.1207378,82839.0,82838.0,0.00181059]
[1741540500757,0.1207378,82839.0,82838.0,0.12254979]
[1741540501055,0.2179,82858.0,82848.0,0.1207247]
[1741540501254,0.1209043,82849.0,82848.0,0.1207247]
[1741540501552,0.17840317,82849.0,82848.0,0.2465247]
[1741540501759,0.21382708,82855.0,82849.0,0.1207227]
[1741540501760,0.27418438,82855.0,82849.0,0.1207227]
[1741540501951,0.1207195,82853.0,82852.0,0.1207174]
[1741540502254,0.1207195,82853.0,82852.0,0.5271174]
[1741540502850,0.21382708,82855.0,82853.0,0.1207174]
[1741540503053,0.21382708,82855.0,82854.0,0.1207159]
[1741540503251,0.0603413,82877.0,82872.0,0.1206897]
[1741540503459,0.1206955,82868.0,82867.0,0.1206934]
[1741540503758,0.0603469,82870.0,82864.0,0.1861104]
[1741540503759,0.2035,82872.0,82871.0,0.1206911]
[1741540503953,0.2035,82872.0,82865.0,0.0603493]
[1741540503954,0.0603455,82871.0,82865.0,0.0603493]
[1741540504259,0.1206999,82867.0,82866.0,0.120697]
[1741540504743,0.1206999,82867.0,82864.0,0.1862914]
[1741540504744,0.1206999,82865.0,82864.0,0.1259411]
[1741540504954,0.1206999,82865.0,82864.0,0.0001811]
[1741540505356,0.1206999,82865.0,82851.0,0.48656]
[1741540505357,0.1207188,82852.0,82851.0,0.12576]
[1741540505658,0.1207188,82852.0,82851.0,0.2464803]
[1741540505956,0.1207305,82844.0,82843.0,0.37272697]
[1741540506251,0.1207305,82844.0,82843.0,0.3608]
[1741540506650,0.1207305,82844.0,82843.0,0.4815319]
[1741540507050,0.48652,82858.0,82843.0,0.3608]
[1741540507360,0.2186,82857.0,82851.0,0.4815203]
[1741540507860,0.57194,82864.0,82851.0,0.4815203]
[1741540508161,0.0603566,82856.0,82851.0,0.4815203]
[1741540508358,0.4291,82855.0,82851.0,0.4815203]
[1741540508553,0.2186,82855.0,82851.0,0.4815203]
[1741540508749,0.2105,82863.0,82851.0,0.4815203]
[1741540508950,0.2186,82862.0,82851.0,0.4815203]
[1741540509459,0.1207087,82859.0,82851.0,0.4815203]
[1741540509651,0.0603533,82861.0,82851.0,0.4815203]
[1741540509956,0.0603548,82859.0,82851.0,0.4815203]
[1741540510157,0.1208999,82852.0,82851.0,0.3608]
[1741540510357,0.1208999,82852.0,82851.0,0.4815203]
[1741540510558,0.1208999,82852.0,82851.0,0.3608]
[1741540511058,0.1207319,82843.0,82842.0,0.13262886]
[1741540511251,0.0001811,82852.0,82851.0,0.1207203]
[1741540511649,0.0001811,82852.0,82842.0,0.37311789]
[1741540511956,0.1207305,82844.0,82843.0,0.1207319]
[1741540512163,0.1207319,82843.0,82842.0,0.25882089]
[1741540512345,0.3343319,82843.0,82842.0,0.25882089]
[1741540512551,0.3343319,82843.0,82838.0,0.01099097]
[1741540512552,0.1207378,82839.0,82838.0,0.01099097]
[1741540512751,0.1207378,82839.0,82838.0,0.00918038]
[1741540512960,0.1207378,82839.0,82835.0,0.1209247]
[1741540512961,0.1207421,82836.0,82835.0,0.1209247]
[1741540513265,0.0603702,82838.0,82835.0,0.1209247]
[1741540513266,0.43,82838.0,82835.0,0.0001811]
[1741540513465,0.49037,82838.0,82835.0,0.0001811]
[1741540513654,0.1207421,82836.0,82835.0,0.1209223]
[1741540513849,0.1207421,82836.0,82835.0,0.1209247]
[1741540514056,0.43,82838.0,82837.0,0.1207407]
[1741540514561,0.5507392,82838.0,82837.0,0.1207407]
[1741540514762,0.1207421,82836.0,82835.0,0.1209247]
[1741540514963,0.43,82838.0,82837.0,0.1207407]
[1741540515464,0.0845,82839.0,82838.0,0.1207392]
[1741540516359,0.08888755,82867.0,82851.0,0.1207203]
[1741540516555,0.2011,82866.0,82851.0,0.9679203]
[1741540516859,0.1207006,82865.0,82851.0,0.9679203]
[1741540517059,0.1207018,82864.0,82851.0,0.9679203]
[1741540517260,0.2011,82866.0,82851.0,0.9679203]
[1741540517568,0.1859357,82885.0,82869.0,0.1206941]
[1741540517751,0.22275074,82870.0,82869.0,0.6070941]
[1741540517949,0.1206673,82888.0,82880.0,0.120678]
[1741540518153,0.2011,82889.0,82880.0,0.607078]
[1741540518366,0.41597265,82886.0,82880.0,0.246278]
[1741540518663,0.35563745,82886.0,82880.0,0.246278]
[1741540518858,0.44022391,82881.0,82880.0,0.246278]
[1741540519060,0.1206707,82886.0,82880.0,0.3471]
[1741540519362,0.1206707,82886.0,82885.0,0.1206708]
[1741540520153,0.3217666,82889.0,82888.0,0.1206664]
[1741540520861,0.3217666,82889.0,82888.0,0.12059758]
[1741540521058,0.1206678,82888.0,82887.0,0.1206675]
[1741540521262,0.1206678,82888.0,82887.0,0.2215]
[1741540521462,0.1206678,82888.0,82887.0,0.3421678]
[1741540521760,0.60232119,82891.0,82890.0,0.1206635]
[1741540522271,0.60232119,82891.0,82890.0,0.2461835]
[1741540522454,0.2181,82895.0,82894.0,0.1206577]
[1741540522655,0.3387562,82895.0,82894.0,0.1206577]
[1741540523163,0.1,82900.0,82899.0,0.1206504]
[1741540523666,0.1,82900.0,82899.0,0.12548]
[1741540523869,0.1,82900.0,82894.0,0.80644633]
[1741540523870,0.1206562,82895.0,82894.0,0.5794]
[1741540524059,0.4263,82899.0,82891.0,0.00018098]
[1741540524260,0.1206606,82892.0,82891.0,0.00018098]
[1741540524560,0.1206606,82892.0,82891.0,0.18117068]
[1741540524763,0.2181,82899.0,82891.0,0.42568098]
[1741540524958,0.45941,82899.0,82898.0,0.1206518]
[1741540525154,0.45941,82899.0,82896.0,0.0603268]
[1741540525155,0.1206591,82894.0,82893.0,0.1206548]
[1741540525360,0.1206591,82894.0,82893.0,0.5461548]
[1741540525562,0.1206591,82894.0,82893.0,0.4255]
[1741540525859,0.1206591,82894.0,82893.0,0.2063]
[1741540526060,0.1206606,82892.0,82891.0,0.00018098]
[1741540526367,0.1,82900.0,82897.0,0.060326]
[1741540526567,0.1206504,82899.0,82898.0,0.5461504]
[1741540526958,0.1,82900.0,82898.0,0.5461504]
[1741540527263,0.3608,82925.0,82922.0,0.1206155]
[1741540527464,0.2103,82923.0,82911.0,0.0603161]
[1741540527651,0.2103,82923.0,82912.0,0.2194]
[1741540527652,0.12063,82913.0,82912.0,0.2194]
[1741540527855,0.1206475,82901.0,82892.0,0.2177]
[1741540528053,0.1206416,82905.0,82904.0,0.00018098]
[1741540528667,0.3435416,82905.0,82904.0,0.00018098]
[1741540529065,0.4689416,82905.0,82904.0,0.00018098]
[1741540530167,0.4689416,82905.0,82904.0,0.12082408]
[1741540530364,0.4689416,82905.0,82904.0,0.00018098]
[1741540530570,0.4689416,82905.0,82904.0,0.42258098]
[1741540530763,0.4689416,82905.0,82904.0,0.20978098]
[1741540530963,0.4689416,82905.0,82904.0,0.00018098]
[1741540531270,0.47271503,82905.0,82904.0,0.00018098]
[1741540531466,0.47271503,82905.0,82904.0,8e-08]
[1741540531768,0.63455694,82905.0,82904.0,8e-08]
[1741540532070,0.58181534,82905.0,82870.0,0.12536]
[1741540532256,0.1206926,82870.0,82869.0,0.2413847]
[1741540532659,0.120697,82867.0,82866.0,0.78436]
[1741540532863,0.1207028,82863.0,82862.0,0.00181009]
[1741540533270,0.12447623,82863.0,82862.0,0.00181009]
[1741540534474,0.0603534,82861.0,82844.0,0.12528]
[1741540534672,0.4815145,82855.0,82849.0,0.3363229]
[1741540534863,0.61056793,82855.0,82849.0,0.3363229]
[1741540535058,0.12905343,82855.0,82854.0,0.12089688]
[1741540535264,3e-08,82855.0,82854.0,0.12089688]
[1741540535464,0.00018059,82871.0,82870.0,0.1206926]
[1741540535670,0.00018059,82871.0,82870.0,0.6067726]
[1741540535870,0.12087169,82871.0,82870.0,1.0433726]
[1741540536174,0.00018059,82871.0,82870.0,1.0433726]
[1741540536373,0.00018059,82871.0,82870.0,1.05521804]
[1741540536767,0.12087169,82871.0,82870.0,1.05521804]
[1741540537164,0.00018059,82871.0,82870.0,1.05521804]
[1741540537670,0.12087169,82871.0,82870.0,0.93452544]
[1741540537863,0.12087169,82871.0,82870.0,0.44844544]
[1741540538786,0.12087169,82871.0,82870.0,0.56913804]
[1741540538787,0.00018059,82871.0,82870.0,0.56913804]
[1741540539566,0.00018059,82871.0,82870.0,0.44844544]
[1741540539872,0.00018059,82871.0,82870.0,0.56913804]
[1741540540471,0.12087169,82871.0,82870.0,0.56913804]
[1741540540668,0.12087169,82871.0,82870.0,0.44844544]
[1741540540976,0.12087169,82871.0,82870.0,0.2166]
[1741540541175,0.00018059,82871.0,82870.0,0.3372926]
[1741540541375,0.00018059,82871.0,82870.0,0.5563926]
[1741540541581,0.12087169,82871.0,82870.0,0.5563926]
[1741540541984,0.00018059,82871.0,82870.0,0.5563926]
[1741540542179,0.12087169,82871.0,82870.0,0.5563926]
[1741540542678,0.00018059,82871.0,82870.0,0.5563926]
[1741540543076,0.12087169,82871.0,82870.0,0.5563926]
[1741540543276,0.00018059,82871.0,82870.0,0.5563926]
[1741540544179,0.00018059,82871.0,82870.0,0.7743926]
[1741540544780,0.12516,82900.0,82870.0,1.0145]
[1741540544976,0.0603294,82894.0,82893.0,0.1206555]
[1741540545278,0.0603292,82896.0,82895.0,0.1206562]
[1741540545979,0.4252,82899.0,82895.0,0.43562085]
[1741540546177,0.3608,82902.0,82901.0,0.1206475]
[1741540546378,0.481446,82902.0,82901.0,0.1206475]
[1741540546881,0.3608,82920.0,82906.0,0.1206402]
[1741540547078,0.2229,82918.0,82906.0,0.1206402]